[Event "DFMM-LV 2023"]
[Site "Braunfels"]
[Date "2023.06.09"]
[Round "1.38"]
[White "Rosmait, Emily"]
[Black "Alferova, Emily"]
[Result "1-0"]
[Annotator "NA RC COMBH"]
[ECO "C94"]
[WhiteElo "1862"]
[BlackElo "1612"]
[PlyCount "111"]
[EventDate "2023.06.09"]
[EventType "team-tourn"]
[EventCountry "GER"]
[SourceTitle "playchess.com"]
[Source "ChessBase"]
[SourceQuality "1"]
[TimeControl "40/5400+30:1800+30"]

1. e4 {[%emt 0:00:03]} e5 {[%emt 0:00:15]} 2. Nf3 {[%emt 0:00:06]} Nc6 {[%emt 0:00:06]} 3. Bb5 {[%emt 0:00:03]} a6 {[%emt 0:00:38]} 4. Ba4 {[%emt 0:00:07]} Nf6 {[%emt 0:00:46]} 5. d3 {[%emt 0:01:34]} b5 {[%emt 0:04:45]} 6. Bb3 {[%emt 0:00:09]} Be7 {[%emt 0:02:38]} 7. c3 {[%emt 0:00:38]} d6 {[%emt 0:01:47]} 8. h3 {[%emt 0:00:14]} O-O {[%emt 0:04:08]} 9. O-O {[%emt 0:00:07]} Bb7 {[%emt 0:08:17]} 10. Re1 {[%emt 0:01:19]} Nb8 {[%emt 0:15:48]} 11. Nbd2 {[%emt 0:02:59]} Nbd7 {[%emt 0:14:16]} 12. Nf1 {[%emt 0:04:56]} Nc5 {[%emt 0:07:08]} 13. Bc2 {[%emt 0:02:14]} Re8 {[%emt 0:06:10]} 14. Ng3 {[%emt 0:01:50]} Bf8 {[%emt 0:08:45]} 15. Ng5 {[%emt 0:16:17]} h6 {[%emt 0:05:29]} 16. Nf3 {[%emt 0:00:26]} a5 {[%emt 0:07:36]} 17. a4 {[%emt 0:11:37]} bxa4 {[%emt 0:05:02]} 18. Be3 {[%emt 0:04:05]} Nfd7 {[%emt 0:02:48]} 19. Bxc5 {[%emt 0:07:33]} Nxc5 {[%emt 0:00:10]} 20. d4 {[%emt 0:00:08]} exd4 {[%emt 0:02:46]} 21. cxd4 {[%emt 0:00:02]} Nd7 {[%emt 0:01:05]} 22. Bxa4 {[%emt 0:00:56]} Re7 {[%emt 0:00:27]} 23. Qc2 {[%emt 0:06:05]} g6 {[%emt 0:00:26]} 24. Bc6 {[%emt 0:03:02]} Bxc6 {[%emt 0:00:34]} 25. Qxc6 {[%emt 0:00:02]} Bg7 {[%emt 0:00:31]} 26. b4 {[%emt 0:03:45]} Re8 {[%emt 0:00:38]} 27. bxa5 {[%emt 0:06:21]} Nf8 {[%emt 0:00:19]} 28. Ra4 {[%emt 0:07:50]} Ne6 {[%emt 0:00:31]} 29. a6 {[%emt 0:03:27]} Qc8 {[%emt 0:00:35]} 30. e5 {[%emt 0:04:31]} dxe5 {[%emt 0:00:29]} 31. dxe5 {[%emt 0:01:23]} Rd8 {[%emt 0:00:31]} 32. Ne4 {[%emt 0:02:52]} Bf8 {[%emt 0:00:34]} 33. Nf6+ {[%emt 0:01:56]} Kg7 {[%emt 0:00:12]} 34. Rc1 {[%emt 0:01:20]} Be7 {[%emt 0:00:38]} 35. Nd5 {[%emt 0:01:05]} Rxd5 {[%emt 0:00:38]} 36. Qxd5 {[%emt 0:00:24]} Rxa6 {[%emt 0:00:06]} 37. Rxa6 {[%emt 0:02:39]} Qxa6 {[%emt 0:00:06]} 38. Nd4 {[%emt 0:00:42]} c5 {[%emt 0:01:16]} 39. Nxe6+ {[%emt 0:01:59]} Qxe6 {[%emt 0:00:13]} 40. Qxe6 {[%emt 0:01:33]} fxe6 {[%emt 0:00:05]} 41. f4 {[%emt 0:31:20]} g5 {[%emt 0:07:50]} 42. g3 {[%emt 0:00:00]} Kg6 {[%emt 0:05:42]} 43. Kf2 {[%emt 0:00:00]} gxf4 {[%emt 0:05:09]} 44. gxf4 {[%emt 0:00:00]} h5 {[%emt 0:00:17]} 45. Kf3 {[%emt 0:00:00]} Kf7 {[%emt 0:11:59]} 46. Ke4 {[%emt 0:00:00]} Kg6 {[%emt 0:01:15]} 47. Rg1+ {[%emt 0:00:00]} Kf7 {[%emt 0:00:15]} 48. Ra1 {[%emt 0:00:00]} Kg6 {[%emt 0:01:35]} 49. Ra6 {[%emt 0:00:00]} Kf7 {[%emt 0:00:28]} 50. Rc6 {[%emt 0:00:00]} Bf8 {[%emt 0:00:49]} 51. f5 {[%emt 0:00:00]} exf5+ {[%emt 0:00:44]} 52. Kxf5 {[%emt 0:00:00]} Be7 {[%emt 0:00:40]} 53. Rc7 {[%emt 0:00:00]} Ke8 {[%emt 0:00:32]} 54. Ke6 {[%emt 0:00:00]} Bh4 {[%emt 0:00:31]} 55. Rc8+ {[%emt 0:00:00]} Bd8 {[%emt 0:00:09]} 56. Rxc5 {[%emt 0:00:00]} 1-0

[Event "DFMM-LV 2023"]
[Site "Braunfels"]
[Date "2023.06.09"]
[Round "1.39"]
[White "Schaefer, Ann-Kathrin"]
[Black "Freter, Anke"]
[Result "0-1"]
[Annotator "NA RC COMBH"]
[ECO "A48"]
[WhiteElo "1695"]
[BlackElo "1855"]
[PlyCount "50"]
[EventDate "2023.06.09"]
[EventType "team-tourn"]
[EventCountry "GER"]
[SourceTitle "playchess.com"]
[Source "ChessBase"]
[SourceQuality "1"]
[TimeControl "40/5400+30:1800+30"]

1. d4 {[%emt 0:00:02]} Nf6 {[%emt 0:00:07]} 2. Nf3 {[%emt 0:00:04]} g6 {[%emt 0:00:06]} 3. e3 {[%emt 0:00:05]} Bg7 {[%emt 0:00:07]} 4. Bd3 {[%emt 0:00:07]} O-O {[%emt 0:00:36]} 5. b3 {[%emt 0:00:19]} d6 {[%emt 0:01:05]} 6. Bb2 {[%emt 0:00:20]} Nbd7 {[%emt 0:00:45]} 7. e4 {[%emt 0:08:25]} e5 {[%emt 0:03:58]} 8. dxe5 {[%emt 0:06:41]} Ng4 {[%emt 0:00:21]} 9. c4 {[%emt 0:04:08]} Ngxe5 {[%emt 0:00:46]} 10. Nc3 {[%emt 0:02:39]} Nxf3+ {[%emt 0:06:14]} 11. Qxf3 {[%emt 0:02:26]} Ne5 {[%emt 0:00:31]} 12. Qe3 {[%emt 0:03:15]} Qh4 {[%emt 0:06:21]} 13. h3 {[%emt 0:09:02]} Bh6 {[%emt 0:02:16]} 14. Qe2 {[%emt 0:00:47]} Bg4 {[%emt 0:06:53]} 15. Qc2 {[%emt 0:03:09]} f5 {[%emt 0:14:37]} 16. exf5 {[%emt 0:18:22]} Rae8 {[%emt 0:04:15]} 17. Be4 {[%emt 0:19:23]} Bxf5 {[%emt 0:02:06]} 18. Kf1 {[%emt 0:01:39]} Bxe4 {[%emt 0:08:13]} 19. Nxe4 {[%emt 0:00:07]} Ng4 {[%emt 0:06:07]} 20. Kg1 {[%emt 0:08:23]} Nxf2 {[%emt 0:06:01]} 21. Nxf2 {[%emt 0:01:54]} Rxf2 {[%emt 0:01:46]} 22. Qc3 {[%emt 0:02:09]} Rxg2+ {[%emt 0:01:41]} 23. Kxg2 {[%emt 0:00:11]} Re2+ {[%emt 0:00:39]} 24. Kf3 {[%emt 0:00:27]} Qe4+ {[%emt 0:00:55]} 25. Kg3 {[%emt 0:00:14]} Qf4# {[%emt 0:00:10]} 0-1

[Event "DFMM-LV 2023"]
[Site "Braunfels"]
[Date "2023.06.09"]
[Round "1.40"]
[White "Kopylov, Diana"]
[Black "Albayrak, Melissa"]
[Result "1-0"]
[Annotator "NA RC COMBH"]
[ECO "D20"]
[WhiteElo "1390"]
[BlackElo "1362"]
[PlyCount "47"]
[EventDate "2023.06.09"]
[EventType "team-tourn"]
[EventCountry "GER"]
[SourceTitle "playchess.com"]
[Source "ChessBase"]
[SourceQuality "1"]
[TimeControl "40/5400+30:1800+30"]

1. d4 {[%emt 0:00:02]} d5 {[%emt 0:00:05]} 2. c4 {[%emt 0:00:07]} dxc4 {[%emt 0:00:18]} 3. e4 {[%emt 0:00:11]} e6 {[%emt 0:00:28]} 4. Bxc4 {[%emt 0:00:17]} Bb4+ {[%emt 0:00:39]} 5. Nc3 {[%emt 0:00:57]} Nf6 {[%emt 0:00:56]} 6. Bg5 {[%emt 0:01:49]} Bxc3+ {[%emt 0:02:36]} 7. bxc3 {[%emt 0:00:15]} h6 {[%emt 0:00:20]} 8. Bxf6 {[%emt 0:02:11]} Qxf6 {[%emt 0:00:10]} 9. Nf3 {[%emt 0:00:57]} Bd7 {[%emt 0:03:28]} 10. O-O {[%emt 0:01:39]} Qg6 {[%emt 0:01:51]} 11. Re1 {[%emt 0:02:27]} O-O {[%emt 0:01:36]} 12. Ne5 {[%emt 0:03:15]} Qf6 {[%emt 0:00:11]} 13. Qb3 {[%emt 0:01:43]} b6 {[%emt 0:02:00]} 14. Ba6 {[%emt 0:07:39]} Bc6 {[%emt 0:02:53]} 15. Qc4 {[%emt 0:04:46]} b5 {[%emt 0:03:08]} 16. Bxb5 {[%emt 0:02:03]} Bxb5 {[%emt 0:00:29]} 17. Qxb5 {[%emt 0:00:12]} Qd8 {[%emt 0:01:03]} 18. Qb7 {[%emt 0:05:23]} Nd7 {[%emt 0:00:27]} 19. Nc6 {[%emt 0:01:11]} Qc8 {[%emt 0:01:31]} 20. Ne7+ {[%emt 0:00:26]} Kh8 {[%emt 0:01:20]} 21. Nxc8 {[%emt 0:00:17]} Rfxc8 {[%emt 0:00:14]} 22. e5 {[%emt 0:04:26]} Nb6 {[%emt 0:02:42]} 23. Qc6 {[%emt 0:02:51]} Nd5 {[%emt 0:03:01]} 24. Rab1 {[%emt 0:03:37]} 1-0

[Event "DFMM-LV 2023"]
[Site "Braunfels"]
[Date "2023.06.09"]
[Round "1.41"]
[White "Otikova, Elina"]
[Black "Nguyen, Ha Thanh"]
[Result "0-1"]
[Annotator "TA"]
[ECO "B43"]
[WhiteElo "2047"]
[BlackElo "1968"]
[PlyCount "108"]
[EventDate "2023.06.09"]
[EventType "team-tourn"]
[EventCountry "GER"]
[SourceTitle "playchess.com"]
[Source "ChessBase"]
[SourceQuality "1"]
[TimeControl "40/5400+30:1800+30"]

{[%evp 14,108,32,12,15,-2,-2,-29,-16,-35,2,8,16,-18,-19,-20,31,7,6,14,56,34,41,9,42,20,22,31,24,16,22,35,43,29,130,0,39,44,268,27,50,0,0,0,0,0,0,0,0,0,0,0,0,0,48,10,35,0,0,-126,-123,-120,-79,-130,-108,-331,-325,-348,-345,-825,-589,-699,0,-760,-879,-861,-836,-1030,-966,-939,-900,-29969,-29964,-29973,-29974,-29966,-29966,-29975,-29972,-29968,-1502,-29968,-29970,-29974,-29973,-29988,-29989]} 1. e4 {[%emt 0:00:03]} c5 {[%emt 0:00:08]} 2. Nf3 {[%emt 0:00:08]} e6 {[%emt 0:00:08]} 3. d4 {[%emt 0:00:13]} cxd4 {[%emt 0:00:05]} 4. Nxd4 {[%emt 0:00:06]} a6 {[%emt 0:00:08]} 5. Nc3 {[%emt 0:00:25]} Qc7 {[%emt 0:00:33]} 6. Bd3 {[%emt 0:00:43]} Nf6 {[%emt 0:00:28]} 7. O-O {[%emt 0:00:51]} Be7 {[%emt 0:10:21]} 8. Kh1 {[%emt 0:02:36]} b5 {[%emt 0:02:34][%cal Bb7b5,Bb5b4][%mdl 32] B43: Sicilian: Kan Variation: 5 Nc3.} 9. a4 {[%emt 0:02:19]} b4 {[%emt 0:01:54]} 10. Na2 {[%emt 0:00:18]} Bb7 {[%emt 0:00:34] [#] Black has an edge.} 11. f3 $146 {[%emt 0:00:28]} ({Predecessor:} 11. Qe2 Nc6 12. Nb3 d5 13. exd5 Nxd5 14. Bd2 Bd6 15. Qg4 Be5 16. c3 bxc3 17. Nxc3 Nxc3 18. Bxc3 Bxc3 19. bxc3 {0-1 Rethmann,K (1858)-Schwarz,L (1764) GER-chT Lands U21 2011 (4.6)}) 11... Nc6 {[%emt 0:10:39]} 12. Nxc6 {[%emt 0:10:10]} Bxc6 {[%emt 0:00:43]} 13. c3 {[%emt 0:08:46]} bxc3 {[%emt 0:12:29]} 14. Nxc3 {[%emt 0:00:23]} d6 {[%emt 0:08:48]} ({Black should play} 14... O-O $11) 15. Be3 {[%emt 0:02:45]} O-O {[%emt 0:04:09]} 16. Qe2 {[%emt 0:08:00]} a5 {[%emt 0:06:47]} 17. Rac1 {[%emt 0:02:27]} Qb7 {[%emt 0:02:01]} 18. Rfd1 {[%emt 0:05:25]} Nd7 {[%emt 0:03:13]} (18... d5 $5 {[%cal Rd5e4]}) 19. Bf4 {[%emt 0:12:14]} Nc5 {[%emt 0:05:09]} 20. Bb5 {[%emt 0:01:30]} Rfd8 {[%emt 0:02:18]} 21. Rc2 {[%emt 0:06:44]} Bf8 {[%emt 0:05:47]} 22. Bxc6 {[%emt 0:08:35]} Qxc6 {[%emt 0:00:07]} 23. Nb5 {[%emt 0:00:17]} d5 {[%emt 0:12:45] [#]} (23... Qa6 $11 {remains equal.}) 24. exd5 {[%emt 0:04:06]} (24. Be3 $1 $16 {[%cal Re3c5]}) 24... exd5 {[%emt 0:02:34]} 25. Be3 {[%emt 0:02:15] Hoping for Bxc5.} Qg6 $2 {[%emt 0:03:57]} 26. Bxc5 $2 {[%emt 0:03:56]} (26. Rxc5 $18 Bxc5 27. Bxc5) 26... Rac8 $11 {[%emt 0:00:12] [#]} 27. Qd3 {[%emt 0:05:29]} Qxd3 {[%emt 0:00:26]} 28. Rxd3 {[%emt 0:00:04] Rdc3 is the strong threat.} Rxc5 {[%emt 0:00:15]} 29. Rxc5 {[%emt 0:01:21]} Bxc5 {[%emt 0:00:05][%mdl 4096] Endgame KRB-KRN} 30. g3 {[%emt 0:01:11]} g6 {[%emt 0:00:21]} 31. Kg2 {[%emt 0:01:02]} Kg7 {[%emt 0:06:22]} 32. f4 {[%emt 0:01:54]} Kf6 {[%emt 0:00:00]} 33. Kf3 {[%emt 0:03:00]} Rd7 {[%emt 0:00:00]} (33... d4 $11) 34. g4 {[%emt 0:01:17]} (34. Rc3 $5 {[%cal Rc3c5]} Bf8 35. Rc8 $14) 34... h6 {[%emt 0:00:00]} 35. Nc3 {[%emt 0:01:34]} (35. Rc3 $5 {[%cal Rc3c5]} Bf8 36. Rc7 $14) 35... Ke6 {[%emt 0:00:00]} 36. f5+ {[%emt 0:02:55]} gxf5 $17 {[%emt 0:00:00]} 37. gxf5+ {[%emt 0:00:04]} Ke5 {[%emt 0:00:00]} 38. f6 {[%emt 0:00:43]} Rd6 {[%emt 0:00:22]} 39. Kg4 $2 {[%emt 0:02:05]} (39. Ke2 $17 {was necessary.}) 39... d4 $19 {[%emt 0:00:20]} ({Resist} 39... Rxf6 40. Rxd5+ Ke6 41. Rxc5 $18) ({Weaker is} 39... Kxf6 40. Rh3 $17) 40. Ne2 {[%emt 0:01:15]} Rxf6 {[%emt 0:00:15]} 41. Rh3 $2 {[%emt 0:04:07]} (41. Rd1) 41... Rg6+ {[%emt 0:10:02]} 42. Kf3 {[%emt 0:00:06]} Rf6+ {[%emt 0:07:19]} 43. Kg4 {[%emt 0:00:14]} Rf2 {[%emt 0:02:10] aiming for ...f5+.} 44. Nc1 {[%emt 0:03:08]} Ke4 {[%emt 0:03:00]} (44... Rxb2 $2 45. Nd3+ (45. Rxh6 $2 {perishes.} Ke4 $19) 45... Ke4 46. Nxb2 $18) 45. Nd3 {[%emt 0:05:27]} Rg2+ {[%emt 0:00:26]} 46. Kh5 {[%emt 0:00:14]} Bd6 {[%emt 0:00:14]} 47. Kxh6 {[%emt 0:02:58]} Rxh2 {[%emt 0:00:07]} 48. Nc5+ {[%emt 0:04:10]} Kd5 {[%emt 0:00:28]} 49. Rxh2 {[%emt 0:00:21]} Bxh2 {[%emt 0:00:04] KB-KN} 50. Nb3 {[%emt 0:01:04]} Bc7 {[%emt 0:00:14]} 51. Kg5 {[%emt 0:00:38]} Ke5 {[%emt 0:01:25]} (51... Kc4 $142 52. Nd2+ Kd3 53. Nb3 Ke3 54. Na1 d3 55. Nb3 d2 56. Nxd2 Kxd2 57. Kf6 Kc2 58. Kxf7 Kb3 59. Kf6 Kxa4 60. Kf7 Kb3 61. Kg7 Kxb2 62. Kg6 a4 63. Kf7 a3 64. Ke6 a2 65. Kd7 Bh2 66. Ke7 a1=Q 67. Kf6 Qf1+ 68. Kg6 Kb3 69. Kg5 Be5 70. Kh4 Qg2 71. Kh5 Qg3 72. Kh6 Qg4 73. Kh7 Qg7#) 52. Kg4 {[%emt 0:00:26]} Ke4 {[%emt 0:01:16] Black mates.} 53. Nc5+ {[%emt 0:02:11]} Ke3 {[%emt 0:00:20]} 54. Na6 {[%emt 0:03:35]} Bd6 {[%emt 0:00:17] Weighted Error Value: White=0.64/Black=0.49} 0-1

[Event "DFMM-LV 2023"]
[Site "Braunfels"]
[Date "2023.06.09"]
[Round "1.43"]
[White "Safonova, Valeria"]
[Black "Bethge, Johanna"]
[Result "1-0"]
[Annotator "NA RC COMBH"]
[ECO "B20"]
[WhiteElo "1753"]
[BlackElo "1721"]
[PlyCount "115"]
[EventDate "2023.06.09"]
[EventType "team-tourn"]
[EventCountry "GER"]
[SourceTitle "playchess.com"]
[Source "ChessBase"]
[SourceQuality "1"]
[TimeControl "40/5400+30:1800+30"]

1. e4 c5 {[%emt 1:31:00]} 2. b3 {[%emt 1:31:30]} d6 {[%emt 0:00:30]} 3. Bb2 {[%emt 0:00:30]} Nc6 {[%emt 0:00:30]} 4. Bb5 {[%emt 0:00:30]} Bd7 {[%emt 0:00:30]} 5. f4 {[%emt 0:00:30]} Nf6 {[%emt 0:00:30]} 6. d3 {[%emt 0:00:30]} Nd4 {[%emt 0:00:30]} 7. Bxd7+ {[%emt 0:00:30]} Nxd7 {[%emt 0:00:30]} 8. Nf3 {[%emt 0:00:30]} e5 {[%emt 0:00:30]} 9. fxe5 {[%emt 0:00:30]} dxe5 {[%emt 0:00:30]} 10. O-O {[%emt 0:00:30]} Bd6 {[%emt 0:00:30]} 11. Nbd2 {[%emt 0:00:30]} O-O {[%emt 0:00:30]} 12. Nc4 {[%emt 0:00:30]} Bc7 {[%emt 0:00:30]} 13. a4 {[%emt 0:00:30]} a6 {[%emt 0:00:30]} 14. Ne3 {[%emt 0:00:30]} Nf6 {[%emt 0:00:30]} 15. Ba3 {[%emt 0:00:30]} Ne6 {[%emt 0:00:30]} 16. Qe1 {[%emt 0:00:30]} Nh5 {[%emt 0:00:30]} 17. Nd5 {[%emt 0:00:30]} Bd6 {[%emt 0:00:30]} 18. Qf2 {[%emt 0:00:30]} Rc8 {[%emt 0:00:30]} 19. Bb2 {[%emt 0:00:30]} f6 {[%emt 0:00:30]} 20. Bc1 {[%emt 0:00:30]} b5 {[%emt 0:00:30]} 21. axb5 {[%emt 0:00:30]} axb5 {[%emt 0:00:30]} 22. Be3 {[%emt 0:00:30]} c4 {[%emt 0:00:30]} 23. bxc4 {[%emt 0:00:30]} bxc4 {[%emt 0:00:30]} 24. Nb6 {[%emt 0:00:30]} Rc6 {[%emt 0:00:30]} 25. Nxc4 {[%emt 0:00:30]} Bc5 {[%emt 0:00:30]} 26. Bxc5 {[%emt 0:00:30]} Nxc5 {[%emt 0:00:30]} 27. Qe3 {[%emt 0:00:30]} Ne6 {[%emt 0:00:30]} 28. g3 {[%emt 0:00:30]} Qe8 {[%emt 0:00:30]} 29. Nh4 {[%emt 0:00:30]} Nd4 {[%emt 0:00:30]} 30. Qf2 {[%emt 0:00:30]} g6 {[%emt 0:00:30]} 31. Nf3 {[%emt 0:00:30]} Ne6 {[%emt 0:00:30]} 32. Ra7 {[%emt 0:00:30]} Nhg7 {[%emt 0:00:30]} 33. Rfa1 {[%emt 0:00:30]} Rc7 {[%emt 0:00:30]} 34. Qb6 {[%emt 0:00:30]} Qc6 {[%emt 0:00:30]} 35. Qxc6 {[%emt 0:00:30]} Rxc6 {[%emt 0:00:30]} 36. Rb7 {[%emt 0:00:30]} Rc7 {[%emt 0:00:30]} 37. Raa7 {[%emt 0:00:30]} Rxb7 {[%emt 0:00:30]} 38. Rxb7 {[%emt 0:00:30]} Ra8 {[%emt 0:00:30]} 39. Nd6 {[%emt 0:00:30]} Rd8 {[%emt 0:00:30]} 40. Nc4 {[%emt 0:00:30]} Nc5 {[%emt 0:00:30]} 41. Ra7 {[%emt 0:30:30]} Nge6 {[%emt 0:30:30]} 42. Kf2 {[%emt 0:00:30]} Rb8 {[%emt 0:00:30]} 43. g4 {[%emt 0:00:30]} Nf4 {[%emt 0:00:30]} 44. h4 {[%emt 0:00:30]} Nce6 {[%emt 0:00:30]} 45. g5 {[%emt 0:00:30]} fxg5 {[%emt 0:00:30]} 46. hxg5 {[%emt 0:00:30]} Nh3+ {[%emt 0:00:30]} 47. Kg3 {[%emt 0:00:30]} Nhxg5 {[%emt 0:00:30]} 48. Nxg5 {[%emt 0:00:30]} Nxg5 {[%emt 0:00:30]} 49. Nxe5 {[%emt 0:00:30]} Rb2 {[%emt 0:00:30]} 50. c4 {[%emt 0:00:30]} Rb3 {[%emt 0:00:30]} 51. Kf4 {[%emt 0:00:30]} Ne6+ {[%emt 0:00:30]} 52. Ke3 {[%emt 0:00:30]} g5 {[%emt 0:00:30]} 53. Re7 {[%emt 0:00:30]} Nf4 {[%emt 0:00:30]} 54. c5 {[%emt 0:00:30]} h5 {[%emt 0:00:30]} 55. c6 {[%emt 0:00:30]} Rc3 {[%emt 0:00:30]} 56. c7 {[%emt 0:00:30]} Kf8 {[%emt 0:00:30]} 57. Rd7 {[%emt 0:00:30]} Ne6 {[%emt 0:00:30]} 58. Rd8+ {[%emt 0:00:30]} 1-0